bitfinex-derivatives/quotes_ETHF0:USTF0_20250422
["timestamp","ask_amount","ask_price","bid_price","bid_amount"]
[1745307479493,1.23855,1615.0,1614.9,6.17940416]
[1745307479696,1.23841,1615.1,1615.0,6.17940416]
[1745307479895,1.23841,1615.1,1614.7,0.00928101]
[1745307479896,3.2078,1615.2,1614.8,6.17940416]
[1745307480093,3.2078,1615.8,1614.9,3.2078]
[1745307480393,3.09545,1615.5,1614.9,9.38720416]
[1745307480595,6.48928383,1615.5,1615.4,1.23818]
[1745307480799,0.00928102,1615.6,1615.4,6.17940416]
[1745307481000,1.2381,1615.5,1615.4,6.17940416]
[1745307481301,1.24736102,1615.6,1615.5,6.17940416]
[1745307481798,4.38266102,1615.6,1615.5,6.17940416]
[1745307482394,0.00928102,1615.6,1615.5,7.41750416]
[1745307482601,1.24730102,1615.6,1615.5,6.17940416]
[1745307483498,4.23120102,1615.6,1615.5,6.17940416]
[1745307483801,4.23120102,1615.6,1615.1,3.2078]
[1745307483802,2.99318102,1615.6,1615.1,3.2078]
[1745307483996,1.23825,1615.4,1615.2,9.08130416]
[1745307484191,1.23825,1615.4,1615.2,2.9019]
[1745307484493,1.23825,1615.4,1615.3,6.17940416]
[1745307484695,0.00928102,1615.6,1615.5,1.2381]
[1745307484997,0.00928102,1615.6,1615.4,9.08130416]
[1745307485189,0.00928102,1615.6,1615.4,2.9019]
[1745307485390,0.00928102,1615.6,1615.5,7.41750416]
[1745307485989,1.23751,1616.3,1616.1,1.23758]
[1745307486189,3.2078,1616.5,1616.2,3.11]
[1745307486393,3.2078,1616.5,1616.2,4.34755]
[1745307486600,4.44519,1616.5,1616.3,6.17940416]
[1745307486798,4.44519,1616.5,1616.4,3.11]
[1745307486995,4.44519,1616.5,1616.4,9.28940416]
[1745307487693,3.2078,1616.5,1616.3,0.00928102]
[1745307487894,3.2078,1616.5,1616.3,3.11928102]
[1745307488097,3.2078,1616.5,1616.4,6.17940416]
[1745307488298,4.44514,1616.5,1616.4,6.17940416]
[1745307488494,3.2078,1616.5,1616.4,9.28940416]
[1745307488699,3.2078,1616.5,1616.4,10.52681416]
[1745307489392,6.06646197,1616.9,1616.6,1.23718]
[1745307489700,7.29654401,1616.9,1616.7,3.0388]
[1745307489995,6.05946401,1616.9,1616.7,10.45534416]
[1745307490194,13.33125693,1617.2,1616.8,6.17940416]
[1745307490494,11.39620795,1617.2,1616.9,3.0388]
[1745307490696,1.23691,1617.1,1616.9,9.21820416]
[1745307490897,10.15933795,1617.2,1617.0,6.17940416]
[1745307490898,11.39618795,1617.2,1617.0,6.17940416]
[1745307491099,11.39618795,1617.2,1617.0,9.21820416]
[1745307491295,11.39618795,1617.2,1617.1,6.17940416]
[1745307491597,11.39613795,1617.2,1617.1,6.17940416]
[1745307492588,1.23741,1616.4,1615.9,6.2244]
[1745307492793,1.23741,1616.4,1616.3,3.02288306]
[1745307492988,4.44521,1616.4,1616.3,0.00228306]
[1745307493184,9.44521,1616.4,1616.3,3.06e-06]
[1745307493384,9.55234299,1616.4,1616.3,3.06e-06]
[1745307493585,1.23787,1615.8,1615.7,3.0206]
[1745307493786,4.44567,1615.8,1615.7,3.0206]
[1745307494007,3.2078,1615.8,1615.7,3.0206]
[1745307494191,3.2078,1615.8,1615.7,8.0206]
[1745307494396,3.09374,1616.3,1615.8,1.23784]
[1745307494590,1.23769,1616.1,1615.9,3.0206]
[1745307494794,1.23772,1616.0,1615.9,3.0206]
[1745307495105,1.23791,1615.8,1615.6,0.00928102]
[1745307495392,4.18086,1615.9,1615.6,2.94298102]
[1745307495799,4.18086,1615.9,1615.6,4.18098102]
[1745307496096,4.18086,1615.9,1615.7,4.17164]
[1745307496297,1.23776,1616.0,1615.7,4.1716]
[1745307496500,2.943,1616.1,1615.7,4.1716]
[1745307496900,1.34492534,1616.0,1615.7,4.1716]
[1745307497099,1.23778,1616.0,1615.7,4.1716]
[1745307497302,1.23785,1615.9,1615.7,2.9337]
[1745307497495,9.24492,1616.1,1615.7,2.9337]
[1745307497496,6.1508,1616.1,1615.7,2.9337]
[1745307497795,4.18069,1616.1,1615.8,1.23785]
[1745307497997,4.18069,1616.1,1615.9,2.9337]
[1745307497998,1.23773,1616.0,1615.9,2.9337]
[1745307498395,2.943,1616.1,1615.6,4.45507102]
[1745307498396,9.24494,1616.1,1615.6,4.45507102]
[1745307498602,1.23787,1615.8,1615.7,3.0807]
[1745307498899,1.23795,1615.7,1615.6,3.21708102]
[1745307500500,6.2612,1615.9,1615.6,3.21708102]
[1745307500696,1.23795,1615.7,1615.6,0.00928102]
[1745307503601,6.19014,1615.6,1614.8,3.2078]
[1745307503799,1.23871,1614.7,1614.6,3.2078]
[1745307504700,1.23863,1614.9,1614.7,1.2387]
[1745307504997,0.00928102,1614.8,1614.7,1.2387]
[1745307505501,0.00928102,1614.8,1614.7,6.2387]
[1745307505697,1.23839,1615.2,1615.0,1.23847]
[1745307505898,3.09564,1615.3,1614.9,1.23849]
[1745307506099,0.10720892,1615.2,1614.8,1.23857]
[1745307506295,1.23853,1615.0,1614.8,4.32233]
[1745307506601,1.23853,1615.0,1614.9,3.0837]
[1745307507000,1.23864,1614.8,1614.7,3.2078]
[1745307507403,6.30403,1615.0,1614.5,6.34838101]
[1745307507603,3.0966,1614.8,1614.5,3.21708101]
[1745307507797,1.23879,1614.6,1614.5,3.21708101]
[1745307508300,4.42408,1614.7,1614.5,4.45595101]
[1745307508494,1.23878,1614.7,1614.5,3.21708101]
[1745307508899,4.42409,1614.6,1614.5,3.21708101]
[1745307509196,14.70409,1614.6,1614.5,0.00928101]
[1745307509400,1.23919,1614.1,1613.9,4.33986]
[1745307509807,1.23919,1614.1,1613.9,3.1006]
[1745307510004,1.23933,1613.9,1613.8,3.2078]
[1745307510206,3.1853,1614.0,1613.4,3.2078]
[1745307510405,1.23946,1613.8,1613.7,0.00928102]
[1745307510606,1.23938,1613.9,1613.7,0.00928102]
[1745307510801,1.23938,1613.9,1613.7,1.24875102]
[1745307511002,1.23935,1613.9,1613.7,0.00928102]
[1745307511301,1.23941,1613.8,1613.7,0.00928102]
[1745307511908,3.19458102,1614.0,1613.8,1.23939]
[1745307511909,0.00928102,1614.0,1613.8,1.23939]
[1745307512100,1.23933,1613.9,1613.8,1.23939]
[1745307512302,0.00928102,1614.0,1613.7,0.00928102]
[1745307512303,1.23941,1613.8,1613.7,0.00928102]
[1745307512509,0.00928102,1614.0,1613.7,0.00928102]
[1745307512711,1.23936,1613.9,1613.7,1.24871102]
[1745307512906,1.23936,1613.9,1613.8,1.23941]
[1745307513207,1.23941,1613.8,1613.7,0.00928102]
[1745307515905,4.28811,1613.8,1613.7,0.00928102]
[1745307516806,3.0487,1613.8,1613.7,0.00928102]
[1745307517212,24.45221033,1613.8,1612.9,1.24009]
[1745307517507,3.09934,1613.4,1613.0,3.2078]
[1745307517697,1.2401,1612.9,1612.8,3.2078]
[1745307517902,6.19951,1613.2,1612.8,3.2078]
[1745307518105,1.24008,1613.0,1612.8,4.44797]
[1745307518309,2.9397,1613.1,1612.8,3.2078]
[1745307518515,4.18894102,1613.1,1612.9,1.24009]
[1745307518807,0.00928102,1613.1,1613.0,1.24002]
[1745307519108,0.00928102,1613.1,1612.8,3.2078]
[1745307519309,1.2401,1612.9,1612.8,3.2078]
[1745307519508,2.94898102,1613.1,1612.8,3.2078]
[1745307519709,2.94898102,1613.1,1612.8,1.24014]
[1745307519710,1.24005,1613.0,1612.8,1.24014]
[1745307519908,2.94898102,1613.1,1612.6,3.2078]
[1745307520110,2.94898102,1613.1,1612.7,3.10063]
[1745307520307,4.45707102,1613.1,1612.9,1.24007]
[1745307520612,1.2401,1612.9,1612.8,3.2212]
[1745307520812,1.24013,1612.9,1612.7,1.24025]
[1745307521110,1.24013,1612.9,1612.7,4.46145]
[1745307521111,1.24016,1612.9,1612.7,4.46145]
[1745307521308,4.27067,1612.8,1612.7,3.2212]
[1745307521515,4.27067,1612.8,1612.6,4.44806]
[1745307521817,3.0305,1612.8,1612.6,3.2078]
[1745307522014,1.24006,1613.0,1612.8,1.24016]
[1745307522212,6.13066,1613.0,1612.6,3.2078]
[1745307522413,1.24019,1612.8,1612.6,4.44811]
[1745307522612,6.13066,1613.0,1612.6,3.2078]
[1745307522613,1.24025,1612.7,1612.6,3.2078]
[1745307523209,1.24033,1612.6,1612.5,3.2212]
[1745307523806,6.1851,1612.8,1612.5,3.2212]
[1745307523807,3.0846,1612.8,1612.5,3.2212]
[1745307524214,4.32483,1612.8,1612.5,4.46154]
[1745307524510,1.24026,1612.7,1612.5,4.46154]
[1745307524712,3.0846,1612.8,1612.3,3.2078]
[1745307524913,3.0846,1612.8,1612.4,3.1932]
[1745307525115,1.24039,1612.6,1612.4,3.1932]
[1745307525617,1.2404,1612.5,1612.4,3.1932]
[1745307526216,4.39879,1612.6,1612.4,3.1932]
[1745307526409,1.24033,1612.6,1612.5,3.2078]
[1745307527022,1.2404,1612.5,1612.4,3.1932]
[1745307527213,1.24037,1612.6,1612.4,3.1932]
[1745307527519,1.2404,1612.5,1612.4,3.1932]
[1745307528015,6.20143,1612.7,1612.3,3.2078]
[1745307528016,1.24048,1612.4,1612.3,3.2078]
[1745307528314,1.24048,1612.4,1612.0,3.2078]
[1745307528315,9.46746,1612.4,1612.0,3.2078]
[1745307528515,1.24071,1612.2,1612.0,1.24078]
[1745307528916,1.24047,1612.5,1612.3,1.24056]
[1745307529222,1.24047,1612.5,1612.4,3.1483]
[1745307529619,0.00928102,1612.6,1612.4,8.1483]
[1745307529823,0.00928102,1612.6,1612.5,1.2404]
[1745307530019,1.24961102,1612.6,1612.5,3.1483]
[1745307530216,0.00928102,1612.6,1612.5,4.3887]
[1745307530416,3.11026102,1612.6,1612.2,3.2078]
[1745307530611,3.0584,1612.5,1612.2,3.2078]
[1745307530917,1.24048,1612.4,1612.3,3.1483]
[1745307531514,1.24056,1612.4,1612.2,4.44842]
[1745307531712,4.29884,1612.5,1612.3,1.24052]
[1745307531916,1.24049,1612.4,1612.2,4.44842]
[1745307532116,1.24056,1612.3,1612.2,3.2078]
[1745307532416,1.24081,1612.0,1611.8,10.69629]
[1745307532622,3.116,1612.2,1612.0,1.24077]
[1745307532822,1.24072,1612.1,1611.9,4.44863]
[1745307533123,1.24079,1612.0,1611.9,6.4291]
[1745307533326,1.24075,1612.1,1611.9,7.66994]
[1745307533620,8.484,1612.3,1611.9,6.4291]
[1745307533826,8.484,1612.3,1611.7,3.23101]
[1745307533827,3.10179,1612.1,1611.7,3.23101]
[1745307534019,3.116,1612.2,1611.8,3.2213]
[1745307534222,8.484,1612.3,1611.9,3.2078]
[1745307534521,8.484,1612.3,1612.0,3.2213]
[1745307534716,3.116,1612.2,1612.0,3.2213]
[1745307534921,3.116,1612.2,1612.1,1.24071]
[1745307535122,9.72459,1612.3,1612.1,4.44851]
[1745307535426,1.24963102,1612.6,1612.4,1.24041]
[1745307535627,1.24965102,1612.6,1612.4,4.44824]
[1745307535824,0.00928102,1612.6,1612.5,1.2404]
[1745307536124,3.1635,1613.0,1612.6,3.10071]
[1745307536328,1.24005,1613.0,1612.9,3.2078]
[1745307536525,1.23974,1613.4,1613.2,1.23987]
[1745307536721,6.3477,1613.6,1613.1,4.44768]
[1745307536923,1.2398,1613.3,1613.1,4.44771]
[1745307537225,9.44662,1613.6,1613.1,3.2078]
[1745307537426,1.24903102,1613.4,1613.2,1.23985]
[1745307537633,0.00928102,1613.4,1613.2,4.35725]
[1745307537921,0.00928102,1613.4,1613.3,4.44759]
[1745307538821,1.24899102,1613.4,1613.3,3.2078]
[1745307539038,0.00928102,1613.4,1613.3,3.2078]
[1745307539230,0.00928102,1613.4,1613.3,4.44759]
[1745307540425,0.00928102,1613.4,1613.3,9.44759]
[1745307540625,11.4108,1614.1,1613.4,3.09927]
[1745307540830,12.41694,1614.1,1613.8,1.23939]
[1745307541030,8.203,1614.1,1614.0,1.23925]
[1745307541325,2.9411,1614.4,1614.3,1.23902]
[1745307541733,8.21228102,1614.5,1614.4,1.23894]
[1745307541927,8.21228102,1614.5,1614.4,4.44674]
[1745307542140,11.4098,1615.1,1614.4,8.2078]
[1745307542324,2.9411,1614.9,1614.6,4.44656]
[1745307542625,4.17971,1614.9,1614.6,3.2078]
[1745307542829,3.0966,1614.8,1614.4,3.2078]
[1745307543130,1.23887,1614.5,1614.4,3.2078]
[1745307543331,1.23887,1614.5,1614.3,4.1898]
[1745307543532,2.9411,1614.4,1614.3,4.18982]
[1745307543730,2.9411,1614.4,1614.2,0.00928102]
[1745307544224,4.18005,1614.4,1614.2,0.00928102]
[1745307544421,1.23902,1614.3,1614.2,0.00928102]
[1745307544625,4.35052,1614.3,1614.2,0.00928102]
[1745307545727,3.1115,1614.3,1614.2,1.24838102]
[1745307545927,3.1115,1614.3,1614.2,0.00928102]
[1745307546124,4.35052,1614.3,1614.2,0.00928102]
[1745307546832,8.1115,1614.3,1613.9,3.2078]
[1745307547031,14.5183,1614.3,1613.9,3.2078]
[1745307547232,1.23925,1614.0,1613.9,3.2078]
[1745307547433,17.61587,1614.3,1613.9,3.2078]
[1745307547730,1.23921,1614.1,1613.9,3.2078]
[1745307548034,4.27185,1614.0,1613.9,3.2078]
[1745307548728,3.09775,1614.2,1613.8,0.00928102]
[1745307548935,4.27193,1613.9,1613.8,0.00928102]
[1745307549630,1.23955,1613.7,1613.4,3.2078]
[1745307549827,1.23979,1613.3,1613.2,3.2078]
[1745307550030,4.27223,1613.6,1613.3,1.23976]
[1745307550224,4.27222,1613.6,1613.3,1.23976]
[1745307550426,4.27222,1613.6,1613.2,3.2078]
[1745307550726,3.04188102,1613.6,1613.4,1.2397]
[1745307550927,0.00928102,1613.6,1613.5,1.23964]
[1745307551129,1.23926,1614.0,1613.8,1.23933]
[1745307551432,105.9538,1614.7,1613.8,3.2078]
[1745307551629,3.1168641,1614.6,1614.1,3.09794]
[1745307551831,3.0096,1614.6,1614.2,2.9913]
[1745307552025,6.10663,1614.6,1614.2,2.9913]
[1745307552230,1.23898,1614.4,1614.2,4.23968102]
[1745307552430,6.11587102,1614.6,1614.2,3.00058102]
[1745307552633,3.01888102,1614.6,1614.2,4.23963102]
[1745307552836,3.01888102,1614.6,1614.2,6.20838102]
[1745307553332,1.239,1614.4,1614.2,0.00928102]
[1745307553524,7.46552102,1614.6,1614.3,1.239]
[1745307553730,1.23902,1614.3,1614.2,0.00928102]
[1745307553929,3.2078,1614.5,1614.2,0.00928102]
[1745307554225,4.35611,1614.4,1614.2,0.00928102]
[1745307554828,1.23902,1614.3,1614.2,0.00928102]
[1745307555031,4.35612,1614.3,1614.2,0.00928102]
[1745307555330,20.48692,1614.3,1614.2,0.00928102]
[1745307555527,22.4527657,1614.3,1613.7,6.2735]
[1745307555729,6.30578,1614.1,1613.7,6.2735]
[1745307555930,3.1171,1614.0,1613.7,6.2735]
[1745307556134,1.23936,1613.9,1613.7,6.2735]
[1745307556437,1.23891,1614.5,1614.2,1.23905]
[1745307556636,1.23891,1614.5,1614.3,3.0732]
[1745307556939,1.23894,1614.4,1614.3,3.0732]
[1745307557239,1.23894,1614.4,1614.2,0.00928102]
[1745307557534,1.23891,1614.5,1614.2,0.00928102]
[1745307557739,7.923,1614.5,1614.2,0.00928102]
[1745307557937,9.1619,1614.5,1614.2,1.24833102]
[1745307558134,1.23866,1614.8,1614.5,1.23887]
[1745307558433,1.23879,1614.7,1614.4,1.23892]
[1745307558637,1.23875,1614.7,1614.5,1.23887]
[1745307559137,1.24811102,1614.6,1614.4,3.0732]
[1745307559337,0.00928102,1614.6,1614.4,4.31211]
[1745307559538,0.00928102,1614.6,1614.5,1.23887]
[1745307559735,0.00928102,1614.6,1614.5,4.19117]
[1745307559940,1.24807102,1614.6,1614.5,2.9523]
[1745307560239,3.10643102,1614.6,1614.2,3.21708102]
[1745307560437,1.23898,1614.4,1614.2,7.40847102]
[1745307560638,1.23902,1614.3,1614.2,6.16938102]
[1745307561926,1.23901,1614.4,1614.2,6.16938102]
[1745307562131,3.1958,1614.5,1614.2,6.16938102]
[1745307562329,1.23896,1614.4,1614.2,7.40846102]
[1745307562639,11.02843102,1614.6,1614.2,6.16938102]
[1745307562640,0.00928102,1614.6,1614.2,6.16938102]
[1745307562943,0.00928102,1614.6,1614.5,1.23887]
[1745307563431,0.00928102,1614.6,1614.5,9.41097]
[1745307563631,4.4463,1615.0,1614.8,1.23861]
[1745307563840,1.2385,1615.0,1614.9,3.1721]
[1745307564039,6.13426,1615.1,1614.6,3.2078]
[1745307564241,1.23871,1614.7,1614.6,3.2078]
[1745307565141,4.27691,1614.7,1614.6,3.2078]
[1745307565329,1.23887,1614.5,1614.4,3.1721]
[1745307565634,1.23887,1614.5,1614.4,6.3799]
[1745307565836,1.23887,1614.5,1614.4,3.2078]
[1745307566041,1.23902,1614.3,1614.2,0.00928102]
[1745307566341,1.23902,1614.3,1613.6,4.44732]
[1745307566342,3.0981,1614.1,1613.6,4.44732]
[1745307566528,3.0981,1614.1,1613.7,3.1259]
[1745307566733,1.23941,1613.8,1613.7,3.1259]
[1745307567132,1.23938,1613.9,1613.7,4.36537]
[1745307567335,0.00928102,1613.9,1613.8,1.23936]
[1745307567740,1.24861102,1613.9,1613.7,4.36532]
[1745307568041,1.24865102,1613.9,1613.7,3.1259]
[1745307568339,1.23941,1613.8,1613.7,3.1259]
[1745307568530,1.24867102,1613.9,1613.7,3.1259]
[1745307568726,1.24867102,1613.9,1613.7,4.36536]
[1745307568936,0.00928102,1613.9,1613.7,4.36536]
[1745307569139,1.23941,1613.8,1613.7,3.1259]
[1745307569538,0.00928102,1613.9,1613.7,4.36538]
[1745307569935,1.24862102,1613.9,1613.7,4.36538]
[1745307570842,0.00928102,1613.9,1613.8,3.2078]
[1745307571143,1.23914,1614.2,1614.0,1.23923]
[1745307571344,1.23905,1614.3,1614.1,4.44694]
[1745307571841,1.23901,1614.4,1614.2,1.23908]
[1745307572039,1.23894,1614.4,1614.2,1.23905]
[1745307572235,1.24820102,1614.5,1614.1,3.2078]
[1745307572435,0.00928102,1614.5,1614.4,4.44674]
[1745307572642,1.24815102,1614.5,1614.4,3.2078]
[1745307572842,1.24815102,1614.5,1614.4,4.44674]
[1745307573039,0.00928102,1614.5,1614.4,4.44674]
[1745307573236,1.24815102,1614.5,1614.4,3.2078]
[1745307574146,1.24815102,1614.5,1614.4,6.4702]
[1745307574950,1.24815102,1614.5,1614.4,3.2624]
[1745307575647,0.00928102,1614.5,1614.4,3.2624]
[1745307575948,1.24815102,1614.5,1614.4,3.2624]
[1745307577044,1.2391,1614.2,1614.1,6.2758]
[1745307578947,1.23903,1614.3,1614.1,6.2758]
[1745307579136,1.23903,1614.3,1614.2,3.3538]
[1745307579342,1.23902,1614.3,1614.2,3.3538]
[1745307580450,3.10647102,1614.5,1614.2,4.5929]
[1745307580649,1.23902,1614.3,1614.2,6.5616]
[1745307584447,1.23902,1614.3,1614.2,3.2078]
[1745307584639,1.23917,1614.1,1614.0,3.3435]
[1745307584839,1.23948,1613.7,1613.6,1.02e-06]
[1745307585044,11.80028,1613.7,1613.6,1.02e-06]
[1745307585245,23.44434065,1613.7,1613.6,1.02e-06]
[1745307585542,1.2401,1612.9,1612.7,3.1762]
[1745307585743,10.45298,1613.1,1612.7,10.99436012]
[1745307585938,13.66078,1613.1,1612.7,10.99436012]
[1745307586145,3.1657,1613.0,1612.7,10.99436012]
[1745307586352,1.24014,1612.9,1612.7,10.99436012]
[1745307586552,1.24015,1612.9,1612.7,11.00364114]
[1745307586952,3.17498102,1613.0,1612.7,11.00364114]
[1745307587256,0.00928102,1613.0,1612.7,11.00364114]
[1745307587450,1.2401,1612.9,1612.7,11.00364114]
[1745307587752,0.00928102,1613.0,1612.7,11.00364114]
[1745307587951,1.24017,1612.8,1612.7,7.82744114]
[1745307588852,1.24017,1612.8,1612.7,11.05294114]
[1745307589354,4.44795,1612.9,1612.7,3.23478102]
[1745307589549,1.24017,1612.8,1612.7,3.23478102]
[1745307591052,3.2078,1612.9,1612.7,3.23478102]
[1745307591253,1.24935102,1613.0,1612.8,3.2078]
[1745307591452,0.00928102,1613.0,1612.9,3.0976]
[1745307591651,0.00928102,1613.0,1612.9,4.3377]
[1745307591852,1.24930102,1613.0,1612.9,8.0976]
[1745307592046,1.24930102,1613.0,1612.9,3.0976]
[1745307593059,1.24017,1612.8,1612.7,0.00928102]
[1745307593442,4.44797,1612.8,1612.7,0.00928102]
[1745307596155,4.55534192,1612.8,1612.7,0.00928102]
[1745307596652,9.55534192,1612.8,1612.7,1.02e-06]
[1745307596957,16.33974225,1612.8,1612.7,1.02e-06]
[1745307597855,16.23234777,1612.8,1612.7,1.02e-06]
[1745307598062,16.3397561,1612.8,1612.7,1.02e-06]
[1745307598554,16.33975207,1612.8,1612.7,1.02e-06]
[1745307598953,9.5553743,1612.8,1612.7,1.02e-06]
[1745307600352,16.17402299,1612.8,1612.7,1.02e-06]
[1745307600557,4.5553743,1612.8,1612.7,1.02e-06]
[1745307601952,9.5553743,1612.8,1612.7,1.02e-06]
[1745307602654,1.24056,1612.3,1612.2,1.02e-06]
[1745307602861,11.6417643,1612.3,1612.2,1.02e-06]
[1745307603053,8.4339643,1612.3,1612.2,1.02e-06]
[1745307603363,1.24056,1612.3,1612.2,5.00000102]
[1745307603753,1.24053,1612.4,1612.2,6.24064102]
[1745307603961,1.24053,1612.4,1612.3,3.066]
[1745307604164,1.24038,1612.6,1612.4,1.24046]
[1745307604355,1.24038,1612.6,1612.5,3.066]
[1745307604756,1.24038,1612.6,1612.5,8.066]
[1745307604965,1.24038,1612.6,1612.5,3.066]
[1745307605165,1.24038,1612.6,1612.5,8.066]
[1745307609465,1.24028,1612.7,1612.5,12.51417]
[1745307609676,1.24025,1612.7,1612.5,12.51417]
[1745307609962,3.10940102,1613.0,1612.5,11.2738]
[1745307609963,0.00928102,1613.0,1612.5,11.2738]
[1745307610163,0.00928102,1613.0,1612.9,1.2401]
[1745307610469,3.0989,1613.6,1613.2,1.23983]
[1745307610673,1.23987,1613.2,1613.1,3.2078]
[1745307611373,3.09895,1613.6,1613.1,11.3122]
[1745307611559,0.00928102,1613.3,1613.1,6.3122]
[1745307611866,0.00928102,1613.3,1613.2,3.1044]
[1745307612069,4.0862064,1613.9,1613.3,3.09948]
[1745307612269,1.23964,1613.5,1613.4,3.1044]
[1745307614771,0.00928102,1613.6,1613.4,3.1044]
[1745307615565,1.24885102,1613.6,1613.4,3.1044]
[1745307615965,1.24885102,1613.6,1613.4,4.34411]
[1745307616266,0.00928102,1613.6,1613.4,4.34411]
[1745307616569,0.00928102,1613.6,1613.4,3.1044]
[1745307616777,4.45668102,1613.6,1613.4,3.1044]
[1745307617071,1.24888102,1613.6,1613.4,3.1044]
[1745307617275,4.45668102,1613.6,1613.4,3.1044]
[1745307617463,1.23964,1613.5,1613.4,3.1044]
[1745307618772,1.24891102,1613.6,1613.4,3.1044]
[1745307618976,1.24887102,1613.6,1613.4,3.1044]
[1745307619579,0.00928102,1613.6,1613.5,1.23964]
[1745307619876,0.00928102,1613.6,1613.5,4.38574]
[1745307620076,1.24884102,1613.6,1613.5,8.1461]
[1745307620577,1.23935,1613.9,1613.7,1.23943]
[1745307620777,1.23935,1613.9,1613.8,3.1884]
[1745307622078,4.44715,1613.9,1613.8,3.1884]
[1745307622676,1.23935,1613.9,1613.8,3.1884]
[1745307623678,0.00928102,1614.0,1613.8,4.4278]
[1745307624177,0.00928102,1614.0,1613.9,3.3275]
[1745307624378,0.00928102,1614.0,1613.9,7.77463]
[1745307624572,6.30517,1614.4,1613.9,9.8445]
[1745307624772,1.23914,1614.2,1613.9,11.08379]
[1745307625284,1.23919,1614.1,1613.9,7.87599]
[1745307625467,6.30567,1614.2,1613.9,6.6367]
[1745307625672,1.07106102,1614.2,1613.9,6.6367]
[1745307625868,4.0862064,1614.5,1614.2,3.09775]
[1745307626069,4.0862064,1614.5,1614.4,4.44674]
[1745307626573,4.0862064,1614.5,1614.4,12.66594]
[1745307627674,5.3250764,1614.5,1614.4,6.427]
[1745307627968,5.3250764,1614.5,1614.4,7.66594]
[1745307629091,1.23887,1614.5,1614.4,7.66594]
[1745307629483,1.23887,1614.5,1614.4,6.427]
[1745307629781,1.23887,1614.5,1614.4,7.66594]
[1745307629980,6.81728102,1614.6,1614.4,7.66594]
[1745307630176,11.81728102,1614.6,1614.2,3.2078]
[1745307630380,1.2391,1614.2,1614.1,3.3005]
[1745307631373,1.23925,1614.0,1613.9,3.2078]
[1745307631583,8.04525,1614.0,1613.9,3.2078]
[1745307633279,6.806,1614.0,1613.9,3.2078]
[1745307633476,4.34599,1614.1,1613.9,7.63787]
[1745307633675,6.806,1614.0,1613.9,7.63787]
[1745307634178,6.806,1614.0,1613.9,7.63791]
[1745307635187,3.1068,1614.1,1614.0,1.23925]
[1745307635378,94.499,1614.2,1614.0,3.2137]
[1745307635580,101.305,1614.2,1614.1,4.44697]
[1745307635982,6.806,1614.5,1614.1,14.40362]
[1745307636181,6.806,1614.5,1614.3,4.44676]
[1745307636386,6.806,1614.5,1614.4,3.2137]
[1745307636688,0.00928102,1614.6,1614.5,1.23887]
[1745307636988,6.81528102,1614.6,1614.5,3.2078]
[1745307637188,6.81528102,1614.6,1614.5,6.4215]
[1745307637580,8.05407102,1614.6,1614.5,6.4215]
[1745307638286,8.05407102,1614.6,1614.5,3.2078]
[1745307638881,1.24807102,1614.6,1614.5,7.79987]
[1745307639080,8.05307102,1614.6,1614.5,7.79987]
[1745307639386,8.05307102,1614.6,1614.5,6.561]
[1745307639585,8.05307102,1614.6,1614.5,3.3532]
[1745307639983,11.22447102,1614.6,1614.5,3.3532]
[1745307641182,18.08283102,1614.6,1614.1,3.2078]
[1745307641486,3.2078,1614.5,1614.1,3.2078]
[1745307641690,1.23904,1614.3,1614.2,3.2072]
[1745307641886,11.36529,1614.4,1614.2,3.2072]
[1745307642087,1.23902,1614.3,1614.2,3.2072]
[1745307642280,3.3213,1614.3,1614.2,3.2072]
[1745307642583,3.2078,1614.5,1614.2,3.2072]
[1745307642890,8.04396,1614.4,1614.2,4.44626]
[1745307643386,6.805,1614.4,1614.3,1.23902]
[1745307643888,8.04394,1614.4,1614.2,3.2072]
[1745307644190,6.805,1614.3,1614.2,4.44629]
[1745307644688,6.805,1614.3,1614.2,4.4463]
[1745307644988,8.04402,1614.3,1614.2,3.2072]
[1745307645192,6.805,1614.3,1614.2,3.2072]
[1745307645488,8.04402,1614.3,1614.2,3.2072]
[1745307645681,11.13112,1614.3,1614.2,3.2072]
[1745307645878,1.23902,1614.3,1614.2,3.2072]
[1745307646083,6.805,1614.3,1614.2,4.4463]
[1745307646282,8.04402,1614.3,1614.2,4.4463]
[1745307646791,6.805,1614.4,1614.2,4.4463]
[1745307646990,1.23902,1614.3,1614.2,6.415]
[1745307647484,4.45572,1614.3,1614.2,3.2078]
[1745307647990,6.19578,1614.2,1613.8,0.00928102]
[1745307648188,1.23941,1613.8,1613.7,3.19851897]
[1745307648380,1.23964,1613.5,1613.4,3.2078]
[1745307648585,1.23964,1613.5,1613.4,6.613]
[1745307648887,1.23964,1613.5,1613.4,7.85271]
[1745307649086,1.23963,1613.6,1613.4,7.85271]
[1745307649393,7.85084102,1613.6,1613.4,7.85267]
[1745307649992,6.61128102,1613.6,1613.4,7.85265]
[1745307650186,7.85084102,1613.6,1613.4,7.85265]
[1745307650485,9.97948102,1613.6,1613.5,1.23964]
[1745307650684,9.97948102,1613.6,1613.5,4.56554]
[1745307651692,9.97948102,1613.6,1613.5,3.3259]
[1745307651885,9.97948102,1613.6,1613.5,4.56554]
[1745307652487,9.97948102,1613.6,1613.5,3.3259]
[1745307652694,9.97948102,1613.6,1613.5,4.56554]
[1745307654391,11.21904102,1613.6,1613.5,4.56554]
[1745307654582,9.97948102,1613.6,1613.5,4.56554]
[1745307655393,11.21904102,1613.6,1613.5,4.56554]
[1745307655890,11.21904102,1613.6,1613.5,7.77334]
[1745307656284,9.97948102,1613.6,1613.5,7.77334]
[1745307656484,11.21904102,1613.6,1613.5,6.5337]
[1745307656890,1.23971,1613.4,1613.3,0.00928102]
[1745307657586,6.604,1613.4,1613.3,0.00928102]
[1745307657786,1.23967,1613.5,1613.4,1.23971]
[1745307657980,9.9842,1613.5,1613.3,4.56803102]
[1745307658487,11.22389,1613.5,1613.3,4.56803102]
[1745307658793,1.23971,1613.4,1613.3,1.24903102]